Cogmind - Beta 14 @@@ ROGUE MODE // 2024.08.31 @ 17:18:28 Player: Epsilon 11 Result: Self-destructed Performance ------------- Evolutions (5) 2500 Regions Visited (8) 1600 Robots Destroyed (51) 255 Value Destroyed (1844) 1844 Prototype IDs (14) 280 Alien Tech Used (0) 0 Bonus (300) 300 TOTAL SCORE: 6779 Bonus ------- Registered with UFD 300 Cogmind --------- Core Integrity 751/1000 Matter 177/300 Energy 100/100 System Corruption 0% Temperature Cool (0) Movement Core (50) Location -5/Factory Parts ------- > --- POWER (1) -------- (None) > --- PROPULSION (5) --- (None) > --- UTILITY (8) ------ Surveybot 17 Chip Advanced System Shield A0-MCA's Component Scanner Improved Corruption Screen > --- WEAPON (3) ------- (None) > --- INVENTORY (5) ---- F-cell Engine Backup Power VII Authchip [Device] Advanced Plasma Cannon Botcube Peak State ------------ > --- POWER ------------ Backup Power VII > --- PROPULSION ------- VTOL Module VTOL Module VTOL Module > --- UTILITY ---------- Experimental Terrain Scanner Surveybot 17 Chip A0-MCA's Component Scanner > --- WEAPON ----------- Backup Laser VII Remote Datajack > --- INVENTORY -------- F-cell Engine Micro Fission Core Backup Plating VII Authchip [Device] Botcube [Rating: 52] Favorites ----------- Power Cooled Ion Engine Engine Cooled Ion Engine Power Core Light Nuclear Core Propulsion Improved Treads Treads Improved Treads Leg Carbon-fiber Leg Wheel Wheel Hover Unit Gravmag System Flight Unit VTOL Module Utility Large Storage Unit Device Drone Bay Storage Large Storage Unit Processor Transport Network Coupler Hackware Advanced System Shield Protection Hardened Light Armor Plating Weapon Flak Cannon Energy Gun Improved EM Shotgun Energy Cannon Advanced Plasma Cannon Ballistic Gun Improved Assault Rifle Ballistic Cannon Flak Cannon Launcher Mini Grenade Launcher Special Weapon Remote Datajack Impact Weapon Maul Build | -11 -10 -10 -9 -9 -9 -9 -6 -5 ------- Run | Yrd Mat Min Mat Sto Rec Scr Fac Fac Slots Evolved 10 | . . . 2 . . . 6 2 Power . | . . . . . . . . . Propulsion 3 | . . . . . . . 1 2 Utility 6 | . . . 2 . . . 4 . Weapon 1 | . . . . . . . 1 . Parts Attached 98 | 7 1 9 12 22 3 11 27 6 Power 8 | 1 . 1 1 4 . 1 . . Engine 7 | 1 . . 1 4 . 1 . . Core 1 | . . 1 . . . . . . Reactor . | . . . . . . . . . Propulsion 21 | 2 . 2 2 2 . 2 11 . Treads 9 | . . 2 2 2 . 2 1 . Leg 1 | . . . . . . . 1 . Wheel 5 | 2 . . . . . . 3 . Hover 2 | . . . . . . . 2 . Flight 4 | . . . . . . . 4 . Utility 34 | 1 1 1 5 8 3 5 5 5 Device 16 | . . . 2 4 2 3 4 1 Storage 3 | 1 1 . . . . 1 . . Processor 6 | . . 1 2 . . . 1 2 Hackware 2 | . . . . . . . . 2 Protection 7 | . . . 1 4 1 1 . . Artifact . | . . . . . . . . . Weapon 35 | 3 . 5 4 8 . 3 11 1 Energy Gun 7 | 1 . . 3 1 . 1 1 . Energy Cannon 2 | . . . . 1 . . . 1 Ballistic Gun 11 | 2 . 2 . 3 . 1 3 . Ballistic Cannon 5 | . . . 1 1 . 1 2 . Launcher 5 | . . 3 . . . . 2 . Special Weapon 1 | . . . . . . . 1 . Impact Weapon 4 | . . . . 2 . . 2 . Slashing Weapon . | . . . . . . . . . Piercing Weapon . | . . . . . . . . . Special Melee Weapon . | . . . . . . . . . Unidentified Prototypes 6 | . . . 1 5 . . . . Parts Lost 32 | . . 4 . 2 . . 20 6 Power 2 | . . 1 . . . . 1 . Propulsion 13 | . . 2 . 1 . . 7 3 Utility 7 | . . . . . . . 5 2 Weapon 10 | . . 1 . 1 . . 7 1 Highest Loss Streak 7 | . . 2 . 1 . . 7 3 To Critical Strikes . | . . . . . . . . . Average Slot Usage (%) 87 | . 85 83 99 98 100 92 57 38 Engine 9 | . 14 2 11 10 11 10 5 . Treads 17 | . . 4 22 21 22 20 7 . Wheel 1 | . 28 12 . . . . . . Device 6 | . . . 10 4 5 5 13 3 Storage 9 | . 14 14 11 11 11 10 5 . Processor 15 | . . 9 21 22 22 16 . 11 Protection 5 | . . . . 6 5 8 2 . Energy Gun 4 | . 14 . 14 9 . 1 1 1 Ballistic Gun 7 | . 14 16 . 5 11 8 4 . Ballistic Cannon 6 | . . . 6 3 11 9 6 . Peak Build Rating 52 | 6 7 14 20 25 25 28 46 52 Average Rating 22 | 4 6 9 16 19 23 22 30 40 On Entrance 15 | . 6 7 11 20 22 23 28 20 Naked Turns 140 | . . . . . . 140 . . Heaviest Build 67 | 13 28 28 38 48 43 49 67 12 Greatest Support 46 | 20 20 46 46 46 43 43 43 12 Greatest Overweight (x) 4 | 1 1 2 . 1 . 1 4 1 Average Overweight (x) . | . . 1 . . . . 1 . Largest Inventory Capacity 15 | 8 15 15 15 15 15 15 15 5 Average Capacity 14 | 7 12 15 15 15 15 14 13 5 Most Carried 15 | 2 9 14 15 15 15 15 15 5 Average Carried 13 | 1 3 12 11 14 14 13 12 4 Final Capacity 15 | 8 15 15 15 15 15 15 5 5 Final Carried 15 | 2 9 12 15 15 15 15 5 5 Class Distribution -------------------- 89% | Mutant 3% | Tank 3% | Gunner 3% | Sprinter Dominant Class ---------------- Mutant | -10/Materials Mutant | -10/Mines Mutant | -9/Materials Mutant | -9/Storage Mutant | -9/Recycling Mutant | -9/Scraptown Mutant | -6/Factory Sprinter | -5/Factory Resources | -11 -10 -10 -9 -9 -9 -9 -6 -5 ----------- Run | Yrd Mat Min Mat Sto Rec Scr Fac Fac Matter Collected 1643 | 171 84 143 177 487 57 . 326 198 Remotely 435 | . . . 117 78 . . 240 . Salvage Created 1758 | . 84 103 253 905 46 . 367 . Parts 94 | . 4 7 13 46 5 . 19 . Haulers Intercepted 1 | . . . . 1 . . . . Recyclers Shooed 1 | . . . . 1 . . . . Parts Field Recycled . | . . . . . . . . . Retrieved Matter . | . . . . . . . . . Parts Self-Destructed . | . . . . . . . . . Prevented . | . . . . . . . . . Kills | -11 -10 -10 -9 -9 -9 -9 -6 -5 ------- Run | Yrd Mat Min Mat Sto Rec Scr Fac Fac Combat Hostiles Destroyed 56 | . 2 17 5 17 1 . 14 . Melee 1 | . . . . . . . 1 . Guns 20 | . 2 1 5 9 . . 3 . Cannons 10 | . . . . 6 1 . 3 . AOE 23 | . . 16 . 1 . . 6 . Classes Destroyed 12 | . 1 2 1 6 . . 2 . Worker 2 | . . . . 2 . . . . Builder 1 | . . . . 1 . . . . Hauler 1 | . . . . 1 . . . . Recycler 1 | . . . . 1 . . . . Watcher 1 | . . . . 1 . . . . Swarmer 10 | . . 3 . 3 . . 4 . Grunt 20 | . 2 3 3 8 . . 4 . Duelist 3 | . . . . 1 . . 2 . Sentry 8 | . . . 2 5 1 . . . Hunter 2 | . . . . . . . 2 . Programmer 2 | . . . . . . . 2 . Assembled 11 | . . 11 . . . . . . Best Kill Streak 8 | . 1 8 2 5 1 . 7 . Combat Bots Only 8 | . 1 8 2 5 1 . 7 . Max Kills in Single Turn 3 | . 1 3 1 2 1 . 3 . Gunslinging . | . . . . . . . . . Exploded 3 | . . 3 . 1 . . 3 . Melee 1 | . . . . . . . 1 . Uniques/NPCs Destroyed . | . . . . . . . . . Combat | -11 -10 -10 -9 -9 -9 -9 -6 -5 -------- Run | Yrd Mat Min Mat Sto Rec Scr Fac Fac Hostile Shots Fired 470 | . 22 45 24 55 4 . 277 43 Missed 168 | . 6 18 8 13 1 . 100 22 Damage Taken 4909 | . 225 582 296 646 91 . 2622 447 Core 1326 | . 104 99 35 101 12 . 726 249 Absorbed by Shields . | . . . . . . . . . Regen/Repaired (Parts) 148 | . . . . 148 . . . . Core Remaining (%) 48 | 100 . 18 . . . 63 14 . Volleys Fired 113 | . 11 21 16 38 3 . 23 1 Largest 3 | . 2 2 2 2 2 . 3 1 Hottest 119 | . 60 60 85 101 67 . 119 98 Shots Fired 235 | . 22 36 30 76 6 . 64 1 Gun 162 | . 22 18 30 63 3 . 26 . Cannon 49 | . . . . 13 3 . 32 1 Launcher 24 | . . 18 . . . . 6 . Special . | . . . . . . . . . Kinetic 113 | . 11 18 . 26 6 . 52 . Thermal 53 | . 11 . 16 25 . . . 1 Explosive 24 | . . 18 . . . . 6 . Electromagnetic 45 | . . . 14 25 . . 6 . Robot Hit Streak 41 | . 7 4 16 41 23 . 10 . Robot Miss Streak 7 | . 3 7 3 3 1 . 7 . Penetration Max 1 | . . . . . . . 1 . Secondary Targets . | . . . . . . . . . Shots Hit Robots 177 | . 17 14 23 69 6 . 48 . Core Hits 150 | . 5 29 13 42 5 . 56 . Critical Kills . | . . . . . . . . . Critical Parts Destroyed 2 | . . . . . . . 2 . Critical Strikes 2 | . . . . . . . 2 . Smash 2 | . . . . . . . 2 . Melee Attacks 17 | . . . . 6 . . 11 . Impact 17 | . . . . 6 . . 11 . Slashing . | . . . . . . . . . Piercing . | . . . . . . . . . Sneak Attacks 3 | . . . . 3 . . . . Combat Hostiles . | . . . . . . . . . Follow-up Attacks . | . . . . . . . . . Damage Inflicted 5026 | . 198 1245 439 1568 121 . 1455 . Guns 1896 | . 198 79 358 940 40 . 281 . Cannons 661 | . . . . 250 81 . 330 . Explosions 2020 | . . 1166 81 108 . . 665 . Melee 430 | . . . . 251 . . 179 . Ramming 19 | . . . . 19 . . . . Kinetic 1287 | . 123 79 . 447 121 . 517 . Thermal 885 | . 75 57 200 387 . . 166 . Explosive 1608 | . . 1109 . . . . 499 . Electromagnetic 797 | . . . 239 464 . . 94 . Impact 430 | . . . . 251 . . 179 . Slashing . | . . . . . . . . . Piercing . | . . . . . . . . . Highest Corruption 1 | . . . . . . . 1 . Average Corruption 1 | . . . . . . . 1 . Corruption Purged . | . . . . . . . . . Corruption Blocked . | . . . . . . . . . Effects 7 | . . . . . . . 7 . Message Errors 2 | . . . . . . . 2 . Matter Fused 1 | . . . . . . . 1 . Heat Flow Errors 1 | . . . . . . . 1 . Energy Discharges 2 | . . . . . . . 2 . Data Loss (minor) 1 | . . . . . . . 1 . Overload Shots . | . . . . . . . . . Overflow Damage 186 | . . 17 . 97 . . 72 . Projectiles . | . . . . . . . . . Explosions 52 | . . 17 . 27 . . 8 . Melee 134 | . . . . 70 . . 64 . Knockbacks 26 | . . . . 9 . . 17 . Impact 1 | . . . . . . . 1 . Kinetic 22 | . . . . 7 . . 15 . Secondary 3 | . . . . 2 . . 1 . Self-Inflicted Damage 283 | . . 48 77 72 . . 86 . Shots 9 | . . 2 2 3 . . 2 . Rammed 2 | . . . . 2 . . . . Targets Rammed 2 | . . . . 2 . . . . Kicked . | . . . . . . . . . Crushed . | . . . . . . . . . Highest Temperature 350 | . 72 18 117 222 33 . 350 43 Average Temperature 78 | . 34 8 45 67 17 . 168 18 Received Heat Transfer 1161 | . 126 72 63 201 60 . 468 171 Effects 3 | . . . . . . . 3 . Energy Bleed 1 | . . . . . . . 1 . Damage (minor) 2 | . . . . . . . 2 . Siege Activations . | . . . . . . . . . Robots Corrupted 3 | . . . . 2 . . 1 . Combat Hostiles 2 | . . . . 1 . . 1 . Parts Fried 7 | . . . . 7 . . . . Impact Corruptions 7 | . . . . 3 . . 4 . Robots Melted . | . . . . . . . . . Combat Hostiles . | . . . . . . . . . Parts Melted . | . . . . . . . . . Heat Transferred 1753 | . 175 50 425 903 . . 200 . Parts Sabotaged . | . . . . . . . . . Parts Stolen . | . . . . . . . . . Parts Stripped . | . . . . . . . . . Power Chain Reactions 7 | . . . 2 3 . . 2 . Alert | -11 -10 -10 -9 -9 -9 -9 -6 -5 ------- Run | Yrd Mat Min Mat Sto Rec Scr Fac Fac Peak Influence 359 | . 61 256 293 359 335 . 194 213 Initial 125 | . . 23 95 123 125 . . 28 Average 170 | . 27 209 147 250 196 . 46 96 Maximum Alert Level 1 | . . 1 1 1 1 . . 1 Low Security (%) 57 | 100 100 28 78 29 46 . 100 99 Level 1 42 | . . 71 21 70 53 . . . Level 2 . | . . . . . . . . . Level 3 . | . . . . . . . . . Level 4 . | . . . . . . . . . Level 5 . | . . . . . . . . . High Security . | . . . . . . . . . Max Security . | . . . . . . . . . Squads Dispatched 4 | . 1 . 1 . . . 2 . Investigation 2 | . 1 . . . . . 1 . Extermination 1 | . . . . . . . 1 . Reinforcement 1 | . . . 1 . . . . . Assault . | . . . . . . . . . Garrison . | . . . . . . . . . Intercept . | . . . . . . . . . Searches Triggered . | . . . . . . . . . Construction Impeded . | . . . . . . . . . Haulers Reinforced . | . . . . . . . . . Active Scanning Responses . | . . . . . . . . . Cargo Convoy Interrupts . | . . . . . . . . . Stealth | -11 -10 -10 -9 -9 -9 -9 -6 -5 --------- Run | Yrd Mat Min Mat Sto Rec Scr Fac Fac Distress Signals 7 | . 1 . . 3 . . 3 . Communications Jammed . | . . . . . . . . . Distress Signals . | . . . . . . . . . Times Spotted 109 | . 8 21 7 25 2 . 33 13 Peak Tracking Total 16 | . 6 8 3 5 . . 11 16 Tactical Retreats 6 | . . 1 . . . . 2 3 Traps | -11 -10 -10 -9 -9 -9 -9 -6 -5 ------- Run | Yrd Mat Min Mat Sto Rec Scr Fac Fac Traps Triggered 2 | . 1 . . 1 . . . . Indirectly . | . . . . . . . . . Trap Hack Attempts . | . . . . . . . . . Triggered . | . . . . . . . . . Disarmed . | . . . . . . . . . Reprogrammed . | . . . . . . . . . Reused . | . . . . . . . . . Traps Extracted . | . . . . . . . . . Installed . | . . . . . . . . . Triggered . | . . . . . . . . . Machines | -11 -10 -10 -9 -9 -9 -9 -6 -5 ---------- Run | Yrd Mat Min Mat Sto Rec Scr Fac Fac Machines Disabled 9 | . . 5 . 2 . . 2 . Max in Single Turn 2 | . . 2 . 1 . . 1 . Garrison Access 1 | . . . . 1 . . . . Machines Repaired . | . . . . . . . . . Machines Dismantled . | . . . . . . . . . Machines Sabotaged . | . . . . . . . . . Overloaded Fab Kills . | . . . . . . . . . Hacking | -11 -10 -10 -9 -9 -9 -9 -6 -5 --------- Run | Yrd Mat Min Mat Sto Rec Scr Fac Fac Machines Accessed 40 | . 1 . 4 12 10 2 3 8 Terminals 23 | . 1 . 3 10 2 . 1 6 Fabricators 1 | . . . . . . . 1 . Repair Stations 2 | . . . . 1 . . . 1 Recycling Units 10 | . . . 1 . 8 . 1 . Scanalyzers . | . . . . . . . . . Garrison Access 2 | . . . . 1 . . . 1 Total Hacks 106 | . 4 . 10 25 19 22 7 19 Successful 70 | . 2 . 7 16 13 22 2 8 Failed 36 | . 2 . 3 9 6 . 5 11 Catastrophic 3 | . . . . . . . 1 2 Database Lockouts . | . . . . . . . . . Manual 52 | . 3 . 7 13 15 . 5 9 Terminals 53 | . 4 . 9 19 4 . 2 15 Fabricators 2 | . . . . . . . 2 . Repair Stations 6 | . . . . 4 . . . 2 Recycling Units 19 | . . . 1 . 15 . 3 . Scanalyzers . | . . . . . . . . . Garrison Access 4 | . . . . 2 . . . 2 Terminal Hacks 34 | . . . 3 6 . 22 . 3 Record 22 | . . . . . . 22 . . Prototype ID Bank 1 | . . . . 1 . . . . Open Door 2 | . . . . 2 . . . . Branch Access Points 1 | . . . 1 . . . . . Terminal Index 2 | . . . . 1 . . . 1 Alert Level 1 | . . . . . . . . 1 Locate Traps 2 | . . . 1 . . . . 1 Hauler Manifests 2 | . . . 1 1 . . . . Zone Layout 1 | . . . . 1 . . . . Fabricator Hacks 1 | . . . . . . . 1 . Build 1 | . . . . . . . 1 . Repair Station Hacks 4 | . . . . 3 . . . 1 Scan Component 2 | . . . . 2 . . . . Repair 1 | . . . . 1 . . . . Refit 1 | . . . . . . . . 1 Recycling Unit Hacks 5 | . . . 1 . 4 . . . Report Inventory 5 | . . . 1 . 4 . . . Scanalyzer . | . . . . . . . . . Garrison Access Hacks 1 | . . . . 1 . . . . Seal Access 1 | . . . . 1 . . . . Unauthorized Hacks 25 | . 2 . 3 6 9 . 1 4 Terminals 16 | . 2 . 3 6 1 . . 4 Track 1 | . . . 1 . . . . . Botnet 13 | . 1 . 1 6 1 . . 4 Operators 2 | . 1 . 1 . . . . . Fabricators . | . . . . . . . . . Repair Stations 1 | . . . . . . . 1 . Recycling Units 8 | . . . . . 8 . . . Tunnel 8 | . . . . . 8 . . . Scrapoids 1 | . . . . . . . 1 . Scanalyzers . | . . . . . . . . . Garrison Access . | . . . . . . . . . Data Cores Recovered . | . . . . . . . . . Used . | . . . . . . . . . Hacking Detections 25 | . 1 . 2 9 2 . 3 8 Full Trace Events . | . . . . . . . . . Feedback Events . | . . . . . . . . . Feedback Blocked . | . . . . . . . . . Robot Schematics Acquired . | . . . . . . . . . Robots Built . | . . . . . . . . . Authchips . | . . . . . . . . . Time . | . . . . . . . . . Total Robot Build Rating . | . . . . . . . . . Part Schematics Acquired . | . . . . . . . . . Parts Built . | . . . . . . . . . Authchips . | . . . . . . . . . Time 117 | . . . . . . . 117 . Total Part Build Rating . | . . . . . . . . . Parts Repaired 1 | . . . . 1 . . . . Time 16 | . . . . 16 . . . . Parts Recycled . | . . . . . . . . . Recycled Matter . | . . . . . . . . . Retrieved Matter . | . . . . . . . . . Retrieved Components . | . . . . . . . . . Parts Scanalyzed . | . . . . . . . . . Part Schematics Acquired . | . . . . . . . . . Parts Damaged . | . . . . . . . . . Bothacking | -11 -10 -10 -9 -9 -9 -9 -6 -5 ------------ Run | Yrd Mat Min Mat Sto Rec Scr Fac Fac Used RIF Installer . | . . . . . . . . . Robots Hacked . | . . . . . . . . . Non-combat . | . . . . . . . . . Combat . | . . . . . . . . . Robot Hacks Applied . | . . . . . . . . . Relay Couplers Released . | . . . . . . . . . Fabnet Peak Effective % . | . . . . . . . . . Robots Rewired . | . . . . . . . . . Allies Hacked . | . . . . . . . . . Hacks Repelled . | . . . . . . . . . Allies | -11 -10 -10 -9 -9 -9 -9 -6 -5 -------- Run | Yrd Mat Min Mat Sto Rec Scr Fac Fac Total Allies 3 | . . 3 . . . . . . Largest Group 3 | . . 3 . . . . . . Highest-Rated Group 40 | . . 40 . . . . . . Highest-Rated Ally 16 | . . 16 . . . . . . Total Orders 27 | . . . . . 8 6 13 . ROAM 8 | . . . . . 1 3 4 . EXPLORE 11 | . . . . . 4 2 5 . RETURN 8 | . . . . . 3 1 4 . Ally Attacks 1 | . . 1 . . . . . . Total Damage 14 | . . 14 . . . . . . Kills . | . . . . . . . . . Allies Corrupted . | . . . . . . . . . Allies Melted 1 | . . . . . 1 . . . Intel | -11 -10 -10 -9 -9 -9 -9 -6 -5 ------- Run | Yrd Mat Min Mat Sto Rec Scr Fac Fac Robot Analysis Total . | . . . . . . . . . Derelict Logs Recovered 1 | . . 1 . . . . . . Drone Launches 21 | . . . . . 2 2 17 . Drone Recoveries 13 | . . . . . 2 2 9 . Exploration | -11 -10 -10 -9 -9 -9 -9 -6 -5 ------------- Run | Yrd Mat Min Mat Sto Rec Scr Fac Fac Turns Passed 6530 | 37 114 342 335 1562 537 2503 826 274 Spaces Moved 4299 | 32 79 228 163 788 264 1671 346 728 Core 373 | 4 . . . . . 272 25 72 Treads 2829 | . . 35 163 788 264 1399 180 . Legs 40 | . . . . . . . 40 . Wheels 317 | 28 79 193 . . . . 17 . Hover 33 | . . . . . . . 33 . Flight 707 | . . . . . . . 51 656 Fastest Speed 29 | 50 80 95 160 160 160 50 29 29 Average Speed 133 | 78 87 116 160 166 160 146 189 35 Slowest Speed 330 | 95 95 160 160 240 160 240 330 112 Overloaded Moves . | . . . . . . . . . Propulsion Burnouts . | . . . . . . . . . Robots Hopped . | . . . . . . . . . Cave-ins Triggered . | . . . . . . . . . Exploration Rate (%) 49 | 4 25 68 23 96 99 95 19 16 Regions Visited 8 Branch Regions 4 Pre-discovered Areas 12 | . . 1 . . 8 3 . . Known Exits Taken 2 | . . . 1 . . . 1 . Unknown Exits Taken 6 | 1 1 1 . 1 1 1 . . Scrap Searched 5 | . . 1 . . . 4 . . Spaces Dug 21 | . . 16 . 1 . . 3 1 Terrain Destroyed 216 | . . 125 9 11 . . 70 1 Melee 4 | . . . . 1 . . 3 . Projectile 5 | . . . . . . . 4 1 AOE 206 | . . 125 9 10 . . 62 . Terrain Rammed . | . . . . . . . . . Walls Destroyed . | . . . . . . . . . Machines Disabled . | . . . . . . . . . Actions | -11 -10 -10 -9 -9 -9 -9 -6 -5 --------- Run | Yrd Mat Min Mat Sto Rec Scr Fac Fac Total 4837 | 40 102 266 206 950 372 1722 437 742 Wait 210 | . 4 4 1 70 101 12 18 . Move 4291 | 31 78 227 162 787 263 1670 345 728 Hop . | . . . . . . . . . Pick Up 58 | 2 7 5 9 10 1 20 2 2 Fast Attach 43 | 6 1 1 1 8 . 8 15 3 Attach 21 | . . 3 3 2 . 2 9 2 Detach 5 | . . . . . . . 3 2 Swap 34 | 1 . 5 8 12 3 1 3 1 Drop 41 | . 1 . 6 15 1 9 6 3 Fire 113 | . 11 21 16 38 3 . 23 1 Melee 17 | . . . . 6 . . 11 . Ram . | . . . . . . . . . Kick . | . . . . . . . . . Crush 2 | . . . . 2 . . . . Escape Stasis . | . . . . . . . . . Rewire . | . . . . . . . . . Trap . | . . . . . . . . . Miscellaneous 2 | . . . . . . . 2 . Route ------- -11/Scrapyard -10/Materials -10/Mines (discovered 2 exits: *Mat x2) -9/Materials (discovered 3 exits: Min x2 / *Sto) -9/Storage (discovered 2 exits: [*Mat] / *Rec) -9/Recycling (discovered 2 exits: [*Fac] / *Scr) -9/Scraptown (discovered 2 exits: *Fac x2) -6/Factory (discovered 8 exits: *Fac x4 / Low x2 / Ext x2) -5/Factory (discovered 4 exits: [*Fac x2] / Upp x2) History --------- Turn | Location | Event 17 | -11/Scrapyard | Discovered new exit (range 16) 38 | -11/Scrapyard | Entered Materials 130 | -10/Materials | Discovered new exit (range 15) 152 | -10/Materials | Entered Mines 197 | -10/Mines | Core integrity fell below 50% 252 | -10/Mines | Assisted by bots powering up and referring to "LRC-V3" 295 | -10/Mines | Received a Rocket Launcher from a helpful Derelict 300 | -10/Mines | Build established: Mutant 315 | -10/Mines | Learned location of Zion (-6) 346 | -10/Mines | Discovered new exit (range 13) 379 | -10/Mines | Assembled infested the area 398 | -10/Mines | Discovered new exit (range 12) 411 | -10/Mines | Lost 3 allies 461 | -10/Mines | Destroyed 8 combat bots 489 | -10/Mines | Core integrity fell below 20% 494 | -10/Mines | Entered Materials 494 | -9/Materials | Evolved 2 slots: Utility x2 650 | -9/Materials | Identified exit to Mines 650 | -9/Materials | Identified exit to Storage 829 | -9/Materials | Entered Storage 1170 | -9/Storage | Repaired Imp. Treads 2021 | -9/Storage | Met 01-MTF 2064 | -9/Storage | Discovered new exit (range 3) 2220 | -9/Storage | Discovered new exit (range 15) 2391 | -9/Storage | Entered Recycling 2391 | -9/Recycling | Accompanied by 1 ally (01-MTF) 2582 | -9/Recycling | Discovered new exit (range 58) 2872 | -9/Recycling | Scanned before Scraplab entrance 2911 | -9/Recycling | Entered Scraplab 2923 | -9/Recycling | Discovered new exit (range 3) 2928 | -9/Recycling | Entered Scraptown 3428 | -9/Scraptown | Discovered new exit (range 13) 3522 | -9/Scraptown | Visited SPCMW 3576 | -9/Scraptown | Visited Spacefarers 3735 | -9/Scraptown | Heard Great Nut preacher, LISTEN AND RECITE! 3741 | -9/Scraptown | Visited Cyclists 3768 | -9/Scraptown | Visited CPS Storage 4042 | -9/Scraptown | Visited TADAMA 4074 | -9/Scraptown | Visited Assassins FH 4111 | -9/Scraptown | Visited Observation Area 4194 | -9/Scraptown | Visited UFD Registry 4194 | -9/Scraptown | Registered with UFD as "Matterpod" 4306 | -9/Scraptown | Entered Cyclist Reading Room 4400 | -9/Scraptown | Visited Research Penetration Think Tank 4444 | -9/Scraptown | Visited A0-MCA Data Center 4454 | -9/Scraptown | Given an A rating by A0-MCA 4493 | -9/Scraptown | Found A0-MCA's Component Scanner 4502 | -9/Scraptown | Discovered new exit (range 57) 4523 | -9/Scraptown | Visited Botcube Research 4700 | -9/Scraptown | Visited Infowarlord's Domain 4709 | -9/Scraptown | Found Exp. Terrain Scanner 4735 | -9/Scraptown | Visited Derelict Rescue Squad 4749 | -9/Scraptown | Found DRS Beacon 4782 | -9/Scraptown | Visited Science Testing Area 4798 | -9/Scraptown | Visited Cartography Club 4825 | -9/Scraptown | Released all parts (9) 4840 | -9/Scraptown | Found Surveybot 17 Chip 4859 | -9/Scraptown | Learned location of Storage (-9) 4859 | -9/Scraptown | Learned location of Proximity Caves (-5) 4859 | -9/Scraptown | Learned 16 Materials zone layouts 4859 | -9/Scraptown | Learned 16 Factory zone layouts 4859 | -9/Scraptown | Learned 24 Factory zone layouts 4859 | -9/Scraptown | Learned 4 Mines zone layouts 4859 | -9/Scraptown | Learned 4 Storage zone layouts 4859 | -9/Scraptown | Learned 4 Recycling zone layouts 4859 | -9/Scraptown | Learned 8 Upper Caves zone layouts 4859 | -9/Scraptown | Learned 12 Upper Caves zone layouts 4859 | -9/Scraptown | Learned 16 Proximity Caves zone layouts 4859 | -9/Scraptown | Learned 24 Proximity Caves zone layouts 4859 | -9/Scraptown | Learned location of 1 exit from Upper Caves 4859 | -9/Scraptown | Learned location of 2 exits from Proximity Caves 4874 | -9/Scraptown | Found Deep Structural Scanner 4917 | -9/Scraptown | Visited Scrapoid Research Area 4925 | -9/Scraptown | Visited LU-1G1's Boring Crew 4946 | -9/Scraptown | Visited Curators Association 5229 | -9/Scraptown | Found Botcube 5431 | -9/Scraptown | Entered Factory 5431 | -6/Factory | Evolved 6 slots: Propulsion x1, Utility x4, Weapon x1 5432 | -6/Factory | Identified exit to Lower Caves 5433 | -6/Factory | Identified exit to Factory 5433 | -6/Factory | Identified exit to Extension 5883 | -6/Factory | Spotted B-75 Beast 5993 | -6/Factory | Lost 5 parts (2n2u1w) 6154 | -6/Factory | Core integrity fell below 50% 6176 | -6/Factory | Destroyed 7 combat bots 6184 | -6/Factory | Lost 7 parts (1p3n1u2w) 6242 | -6/Factory | Core integrity fell below 20% 6257 | -6/Factory | Entered another Factory area 6257 | -5/Factory | Evolved 2 slots: Propulsion x2 6258 | -5/Factory | Identified exit to Upper Caves 6266 | -5/Factory | Lost 6 parts (2n1u3w) 6402 | -5/Factory | Discovered new exit (range 30) 6480 | -5/Factory | Discovered new exit (range 25) 6531 | -5/Factory | Self-destructed Last Messages --------------- 06451_ VTOL Module destroyed. 06452_ Dropped Backup Plating VII. 06454_ Slug penetrates Wall. 06460_ Remote Datajack destroyed. 06460_ Critical hit (Burn: +37). 06465_ ALERT: Security rotation in progress. 06474_ Slug penetrates Wall. 06480_ EXIT=FOUND 06487_ Acquired Imp. Corruption Screen. 06490_ Acquired Adv. System Shield. 06492_ Slug penetrates Wall. 06492_ Critical hit (Burn: +37). 06494_ VTOL Module destroyed. 06494_ Penetrated by Slug. 06497_ Slug penetrates Wall. 06501_ Penetrated by Slug. 06510_ U-05 Engineer builds a Wall. 06511_ Adv. System Shield destroyed. 06511_ Penetrated by Slug. 06519_ Exp. Terrain Scanner destroyed. Map ----- +----------------------------------------------------+ | ##?? ####?####### ####?########+ | | ##? ? | | ? ? "" "" | | ## ""G"" | | ## ? ### ############+#################?#### T | | #### ##### ######### #################### | | ##?# ##### ######### #################### | | ####+##### ######### ############# | | ##### ######### ############# """"" | | " ? ##### ###?##### ############# """"" | | " ##### ######### ############# """"" | | " #### ######## ############# """"" | | #### # ## ############# | | "" #### < # ## ############# """"" | | "" #### # #######################! """"" | | "" #### # ####################### """"" | | ###### ### [ ####################### """"" | | ########### ##### ######################### | | # ######### ##### ######## ########### | | ### ####### ##### ######## """ #################+ | | ## ##### + """ # + | | ## ##### ######## """ #= """"" # | | ## ##### ######## # """"" # | | ## ### ###### """ # """ # | | ? ## ### # """ # + | | ## mhk @ """ # """"" # | | """ ## ### # Y # """"" # | | """ ## ### #### # """ # """ # | | """ ## #####+###### # """ # !# | | "" ## # ## # """ + # | | "" ## #"" """ ## # # # | | ## #"" """ ## #! # # | | ########### #"T """ ## ##################### | | ########### #"" ## ##################### | | ########### #"" [ ## ##################### | | ########### # ## ##################### | | ########### # ## ##################### | | ########### #####/######+##################### | | ########### ### # ############ | | ########### ### # """ """ ############ | | ######## + ""R" """ ############ | | ######## ###### # "" " """ ############ | | ######## ###### # ############ < | | ######## ########################### | | ################# #### ############ | | ######## + + ############ | | ?####### #^ # ############ | | ######## """ # # ################# | | ######## """ + # ############### | | ######## """ ###### ############### | +----------------------------------------------------+ Best States ------------- Heat Dissipation 40 Coolant Potential 50 Energy Generation 17 Energy Capacity 280 Matter Stores 300 Matter Capacity 300 Sight Range 16 Terrain Scan Range 30 Terrain Scan Density 1210 Corruption Block 15 Armor Coverage 225 Evasion (%) 64 Targeting Accuracy 8 Recoil Reduction 2 Defensive Hacking 28 Authchip Count 1 Item Schematics ----------------- None Robot Schematics ------------------ None Fabricated ------------ Nothing Alien Tech Used ----------------- None Achievements -------------- None Challenges ------------ None Game ------ Seed JunkBombardmentNanoactuators Manual? 0 Play Time 01:57:02 Cumulative 149.0 hours Start 2024.08.31 @ 15:07:09 End 2024.08.31 @ 17:18:28 Sessions 1 Manual Loads 0 Difficulty Rogue Special Mode None Game No. 67 Rogue 24 Adventurer 43 Explorer 0 Win Type - Total 4 Types 2/0/1/0/0/0/0/1/0 Lore% 60 Gallery% 65 Achievement% 58 Wizard Run 0 Options --------- Layout 0 ASCII 0 Keyboard 0 Movement Mouse Keybinds 0 Fullscreen 1 Font 24/Smallcaps Map View 76x50 Zoom Use 0% Tactical HUD 1 Map Filters NONE Filters NONE Steam 1 RUN: 1bdbd61e-e098-4f71-844b-f5a23956214c